bitfinex/quotes_SOLUSD_20230103
["timestamp","ask_amount","ask_price","bid_price","bid_amount"]
[1672776706205,22.8327,13.037,13.027,57.63]
[1672776706417,22.8327,13.037,13.028,20.0]
[1672776707148,22.8327,13.037,13.028,77.62]
[1672776707586,22.8327,13.037,13.028,20.0]
[1672776708737,17.62701619,13.036,13.028,20.0]
[1672776709049,17.62701619,13.036,13.028,77.62]
[1672776709771,17.62701619,13.036,13.028,20.0]
[1672776712829,17.62701619,13.036,13.028,77.62]
[1672776713241,17.62701619,13.036,13.028,20.0]
[1672776713780,17.62701619,13.036,13.028,77.62]
[1672776714827,17.62701619,13.036,13.028,20.0]
[1672776715887,17.62701619,13.036,13.028,77.62]
[1672776720916,17.62701619,13.036,13.027,24.3703]
[1672776721133,61.08137784,13.035,13.023,57.65]
[1672776721345,57.6,13.034,13.022,57.65]
[1672776721657,82.4595,13.034,13.022,57.65]
[1672776721851,17.622882,13.035,13.022,57.65]
[1672776722060,17.622882,13.035,13.022,81.5033]
[1672776722691,24.8595,13.038,13.024,30.0]
[1672776722906,24.8595,13.038,13.025,81.4933]
[1672776723133,24.8595,13.038,13.026,20.0]
[1672776723349,24.8595,13.038,13.027,57.63]
[1672776723550,24.8595,13.038,13.028,20.0]
[1672776723756,17.42384153,13.037,13.028,20.0]
[1672776724080,47.42384153,13.037,13.028,20.0]
[1672776724287,41.08137784,13.036,13.023,119.8783]
[1672776724496,77.59,13.035,13.023,119.8783]
[1672776724706,30.0,13.034,13.023,119.8783]
[1672776724917,30.0,13.032,13.023,119.8783]
[1672776725756,17.39903065,13.031,13.023,119.8783]
[1672776726818,24.8827,13.033,13.023,119.8783]
[1672776728179,24.8827,13.033,13.024,57.64]
[1672776729767,17.40316738,13.032,13.024,57.64]
[1672776731447,17.40316738,13.032,13.025,30.0]
[1672776731669,24.1523,13.039,13.027,30.0]
[1672776731980,24.1523,13.039,13.028,77.62]
[1672776732377,48.1865,13.039,13.028,77.62]
[1672776733012,48.1865,13.039,13.028,102.4661]
[1672776733865,17.42797445,13.038,13.028,102.4661]
[1672776735977,17.42797445,13.038,13.03,6.7]
[1672776736189,17.42797445,13.038,13.031,57.61]
[1672776738902,17.42797445,13.038,13.032,30.0]
[1672776739124,17.42797445,13.038,13.033,57.6]
[1672776739316,17.42797445,13.038,13.034,30.0]
[1672776739528,17.42797445,13.038,13.035,57.59]
[1672776739748,17.42797445,13.038,13.035,77.59]
[1672776739943,22.8847,13.047,13.035,77.59]
[1672776740784,30.0,13.045,13.03,31.2405]
[1672776740998,57.55,13.044,13.03,47.2326]
[1672776741229,68.63137784,13.044,13.03,47.2326]
[1672776741423,11.08137784,13.043,13.03,47.2326]
[1672776741625,57.56,13.042,13.03,47.2326]
[1672776741834,82.1757,13.042,13.03,47.2326]
[1672776742049,11.08137784,13.041,13.03,47.2326]
[1672776742269,41.08137784,13.041,13.03,47.2326]
[1672776742481,65.69707784,13.041,13.03,47.2326]
[1672776742701,17.4362384,13.04,13.03,47.2326]
[1672776743226,17.4362384,13.04,13.03,22.6521]
[1672776743629,86.08761624,13.04,13.03,22.6521]
[1672776743844,30.0,13.039,13.03,22.6521]
[1672776744053,30.0,13.037,13.03,22.6521]
[1672776744266,30.0,13.037,13.028,23.4934]
[1672776745120,64.9412384,13.04,13.03,6.7]
[1672776745311,64.9412384,13.04,13.031,57.61]
[1672776746258,64.9412384,13.04,13.029,57.62]
[1672776746478,64.9412384,13.04,13.03,6.7]
[1672776746690,64.9412384,13.04,13.031,57.61]
[1672776747836,64.9412384,13.04,13.031,68.69137784]
[1672776748782,17.4362384,13.04,13.031,68.69137784]
[1672776749009,17.4362384,13.04,13.032,20.0]
[1672776749317,17.4362384,13.04,13.034,30.0]
[1672776749529,17.4362384,13.04,13.035,77.59]
[1672776749726,2.4751736,13.048,13.036,30.0]
[1672776750059,2.4751736,13.048,13.04,6.68]
[1672776750269,2.4751736,13.048,13.041,57.57]
[1672776750680,17.46514228,13.047,13.041,68.65137784]
[1672776752471,4.228e-05,13.047,13.042,50.94258507]
[1672776752794,2.4751736,13.048,13.043,107.56]
[1672776752795,17.46101506,13.046,13.043,107.56]
[1672776753105,2.4751736,13.048,13.044,80.32066507]
[1672776753316,7.36e-05,13.048,13.045,77.55]
[1672776753638,7.36e-05,13.048,13.046,30.0]
[1672776753828,7.36e-05,13.048,13.047,77.54]
[1672776754158,7.36e-05,13.048,13.047,138.94204291]
[1672776754974,10.68609056,13.048,13.047,138.94204291]
[1672776756249,0.00609056,13.048,13.047,138.94204291]
[1672776756448,2.4751736,13.058,13.048,30.0]
[1672776756655,2.4751736,13.058,13.05,63.38]
[1672776756868,2.4751736,13.058,13.052,30.0]
[1672776757078,2.4751736,13.058,13.051,48.18455994]
[1672776757302,2.4751736,13.058,13.047,178.5449]
[1672776757510,2.4751736,13.058,13.048,30.0]
[1672776757707,2.4751736,13.058,13.049,57.53]
[1672776758356,2.4751736,13.058,13.05,6.7]
[1672776758571,2.4751736,13.058,13.051,30.0]
[1672776758786,8.94133278,13.057,13.051,41.08137784]
[1672776759091,8.94133278,13.057,13.052,64.78204291]
[1672776759702,8.94133278,13.057,13.052,53.70066507]
[1672776759914,8.94133278,13.057,13.051,30.0]
[1672776759915,8.94133278,13.057,13.054,30.0]
[1672776760351,8.94133278,13.057,13.054,94.78204291]
[1672776761172,8.94133278,13.057,13.054,30.0]
[1672776761826,8.94133278,13.057,13.055,48.87298507]
[1672776762017,8.94133278,13.057,13.054,41.08137784]
[1672776762227,8.94133278,13.057,13.054,11.08137784]
[1672776762438,8.94133278,13.057,13.051,87.52]
[1672776762654,8.94133278,13.057,13.052,11.08137784]
[1672776763096,8.94133278,13.057,13.053,30.0]
[1672776763400,8.94133278,13.057,13.054,54.77498958]
[1672776763625,8.94133278,13.057,13.055,30.0]
[1672776763929,8.94133278,13.057,13.055,91.19142501]
[1672776764329,8.94133278,13.057,13.055,44.30027841]
[1672776764558,8.94133278,13.057,13.05,64.61252444]
[1672776764878,8.94133278,13.057,13.05,53.5311466]
[1672776765402,8.94133278,13.057,13.05,6.64]
[1672776766959,8.94133278,13.057,13.047,216.0849]
[1672776767171,8.94133278,13.057,13.048,20.0]
[1672776768653,8.94133278,13.057,13.048,77.54]
[1672776769598,8.94133278,13.057,13.048,20.0]
[1672776769792,8.94133278,13.057,13.048,77.54]
[1672776771810,8.94133278,13.057,13.048,64.30027841]
[1672776772005,66.44133278,13.057,13.048,20.0]
[1672776772648,66.44133278,13.057,13.048,77.54]
[1672776772649,8.94133278,13.057,13.048,77.54]
[1672776772962,8.94133278,13.057,13.048,20.0]
[1672776784617,8.94133278,13.057,13.049,11.08137784]
[1672776785267,8.94133278,13.057,13.048,77.54]
[1672776785794,8.94133278,13.057,13.048,20.0]
[1672776786614,8.94133278,13.057,13.048,77.54]
[1672776786853,8.94133278,13.057,13.048,20.0]
[1672776788519,8.94133278,13.057,13.048,77.54]
[1672776789048,8.94133278,13.057,13.048,20.0]
[1672776793570,8.94133278,13.057,13.048,77.54]
[1672776795047,8.94133278,13.057,13.048,88.62137784]
[1672776796591,8.94133278,13.057,13.049,30.0]
[1672776796815,8.94133278,13.057,13.05,57.53]
[1672776797012,8.94133278,13.057,13.05,68.61137784]
[1672776797226,8.94133278,13.057,13.049,57.53]
[1672776798404,8.94133278,13.057,13.049,68.61137784]
[1672776800398,8.94133278,13.057,13.049,57.53]
[1672776800589,8.94133278,13.057,13.048,77.54]
[1672776801219,8.94133278,13.057,13.048,20.0]
[1672776802082,8.94133278,13.057,13.048,77.54]
[1672776802594,8.94133278,13.057,13.048,20.0]
[1672776803638,8.94133278,13.057,13.049,57.53]
[1672776803851,8.94133278,13.057,13.05,30.0]
[1672776804060,8.94133278,13.057,13.051,57.52]
[1672776804597,8.94133278,13.057,13.049,57.53]
[1672776806053,8.94133278,13.057,13.048,42.6246]
[1672776809119,8.94133278,13.057,13.048,100.1646]
[1672776809946,8.94133278,13.057,13.049,30.0]
[1672776810155,8.94133278,13.057,13.05,57.53]
[1672776810899,8.94133278,13.057,13.049,57.53]
[1672776811943,8.94133278,13.057,13.049,68.61137784]
[1672776812693,8.94133278,13.057,13.049,57.53]
[1672776818244,8.94133278,13.057,13.048,42.6246]
[1672776819415,8.94133278,13.057,13.048,100.1646]
[1672776823198,8.94133278,13.057,13.05,6.68]
[1672776823402,8.94133278,13.057,13.052,30.0]
[1672776823731,8.94133278,13.057,13.053,57.51]
[1672776823913,8.94133278,13.057,13.05,57.53]
[1672776827194,8.94133278,13.057,13.049,24.7896]
[1672776827806,8.94133278,13.057,13.05,57.53]
[1672776828021,8.94133278,13.057,13.049,82.3196]
[1672776830870,8.94133278,13.057,13.049,24.7896]
[1672776831714,38.94133278,13.057,13.049,24.7896]
[1672776832142,96.44133278,13.057,13.049,24.7896]
[1672776832884,66.44133278,13.057,13.049,24.7896]
[1672776833934,8.94133278,13.057,13.049,24.7896]
[1672776840658,8.94133278,13.057,13.05,57.53]
[1672776841508,8.94133278,13.057,13.049,82.3196]
[1672776841913,8.94133278,13.057,13.049,24.7896]
[1672776843921,66.44133278,13.057,13.049,24.7896]
[1672776844244,20.0,13.056,13.049,24.7896]
[1672776844554,87.5,13.055,13.042,57.56]
[1672776844867,30.0,13.054,13.04,57.57]
[1672776845079,57.51,13.053,13.04,80.1087]
[1672776845698,24.3408,13.052,13.04,22.5387]
[1672776845910,57.52,13.051,13.04,22.5387]
[1672776846109,81.8608,13.051,13.04,22.5387]
[1672776846324,24.3408,13.051,13.04,22.5387]
[1672776847906,8.11166613,13.05,13.04,22.5387]
[1672776857083,8.11166613,13.05,13.04,80.1087]
[1672776859386,8.11166613,13.05,13.04,22.5387]
[1672776859602,8.11166613,13.05,13.04,80.1087]
[1672776861170,8.11166613,13.05,13.04,22.5387]
[1672776865586,8.11166613,13.05,13.04,80.1087]
[1672776865919,8.11166613,13.05,13.04,22.5387]
[1672776866862,8.11166613,13.05,13.04,80.1087]
[1672776869585,8.11166613,13.05,13.04,86.7387]
[1672776870748,8.11166613,13.05,13.04,97.82007784]
[1672776871698,8.11166613,13.05,13.04,91.19007784]
[1672776871900,8.11166613,13.05,13.04,83.4487]
[1672776872541,8.11166613,13.05,13.04,25.8787]
[1672776872743,8.11166613,13.05,13.04,83.4487]
[1672776876333,8.11166613,13.05,13.04,80.1087]
[1672776886330,8.11166613,13.05,13.04,22.5387]
[1672776886645,8.11166613,13.05,13.04,80.1087]
[1672776889047,38.11166613,13.05,13.04,80.1087]
[1672776889269,38.11166613,13.05,13.04,22.5387]
[1672776890411,41.42166613,13.05,13.04,22.5387]
[1672776890637,11.42166613,13.05,13.04,22.5387]
[1672776891039,41.42166613,13.05,13.04,22.5387]
[1672776891793,11.42166613,13.05,13.04,22.5387]
[1672776894945,11.42166613,13.05,13.04,80.1087]
[1672776895666,68.95166613,13.05,13.04,80.1087]
[1672776895877,11.42166613,13.05,13.04,22.5387]
[1672776899244,87.91422846,13.05,13.038,57.58]
[1672776899447,88.3295536,13.049,13.032,131.4932]
[1672776899767,87.29211593,13.048,13.033,80.2593]
[1672776899973,30.0,13.046,13.033,80.2593]
[1672776900301,100.3223,13.045,13.033,80.2593]
[1672776900498,146.81486233,13.045,13.033,80.2593]
[1672776900713,89.26486233,13.045,13.033,80.2593]
[1672776901039,30.0,13.044,13.033,80.2593]
[1672776901885,52.7723,13.044,13.033,80.2593]
[1672776902605,52.7723,13.044,13.033,22.6593]
[1672776903766,22.7723,13.044,13.033,22.6593]
[1672776904183,22.7723,13.044,13.034,57.6]
[1672776904920,8.08277554,13.043,13.034,57.6]
[1672776905133,8.08277554,13.043,13.033,80.2593]
[1672776907008,8.08277554,13.043,13.034,30.0]
[1672776907217,8.08277554,13.043,13.035,57.59]
[1672776908273,8.08277554,13.043,13.036,20.0]
[1672776908483,8.08277554,13.043,13.037,57.58]
[1672776908694,108.2276,13.049,13.038,20.0]
[1672776908904,108.2276,13.049,13.04,3.34]
[1672776909127,108.2276,13.049,13.041,57.57]
[1672776909339,10.7995536,13.054,13.041,57.57]
[1672776909538,23.9775,13.053,13.042,24.1607]
[1672776909961,8.10341484,13.048,13.042,24.1607]
[1672776910817,23.9775,13.051,13.042,24.1607]
[1672776911865,23.9775,13.051,13.043,57.56]
[1672776912929,8.11166613,13.05,13.043,57.56]
[1672776913539,8.11166613,13.05,13.044,11.08137784]
[1672776913764,8.11166613,13.05,13.045,57.55]
[1672776914176,8.11166613,13.05,13.043,57.56]
[1672776914595,8.11166613,13.05,13.044,31.08137784]
[1672776914815,8.11166613,13.05,13.045,87.55]
[1672776915029,8.11166613,13.05,13.047,30.0]
[1672776915232,8.11166613,13.05,13.048,77.54]
[1672776915643,0.00166613,13.05,13.049,71.39998884]
[1672776915858,47.5368,13.061,13.05,30.0]
[1672776915859,24.1463,13.06,13.05,30.0]
[1672776916074,59.9251736,13.068,13.051,77.52]
[1672776916290,2.4751736,13.068,13.051,145.48877625]
[1672776916503,2.4751736,13.068,13.052,67.96877625]
[1672776916712,2.4751736,13.068,13.053,77.51]
[1672776916924,2.4751736,13.068,13.054,30.0]
[1672776916925,6.791362,13.057,13.054,30.0]
[1672776917237,6.791362,13.057,13.055,77.5]
[1672776918069,6.791362,13.057,13.051,104.8908]
[1672776918294,6.791362,13.057,13.051,57.52]
[1672776918908,6.791362,13.057,13.051,68.60137784]
[1672776919757,6.791362,13.057,13.052,30.0]
[1672776919949,6.791362,13.057,13.053,57.51]
[1672776920159,6.791362,13.057,13.054,30.0]
[1672776920699,6.791362,13.057,13.052,67.96877625]
[1672776920918,6.791362,13.057,13.052,56.88739841]
[1672776921238,6.791362,13.057,13.051,57.52]
[1672776921435,6.791362,13.057,13.05,6.64]
[1672776923972,6.791362,13.057,13.051,11.08137784]
[1672776924396,6.791362,13.057,13.05,6.64]
[1672776925428,6.791362,13.057,13.05,36.64]
[1672776925639,6.791362,13.057,13.05,6.64]
[1672776927218,6.791362,13.057,13.049,57.53]
[1672776927436,6.791362,13.057,13.048,81.4358]
[1672776928496,6.791362,13.057,13.048,92.51717784]
[1672776928892,6.791362,13.057,13.048,81.4358]
[1672776929111,6.791362,13.057,13.048,23.8958]
[1672776930894,6.791362,13.057,13.048,81.4358]
[1672776931103,6.791362,13.057,13.048,23.8958]
[1672776932057,6.791362,13.057,13.049,57.53]
[1672776933000,6.791362,13.057,13.05,6.63]
[1672776933212,6.791362,13.057,13.051,57.52]
[1672776934397,6.791362,13.057,13.051,68.60137784]
[1672776934606,6.791362,13.057,13.051,57.52]
[1672776934802,6.791362,13.057,13.049,49.33630507]
[1672776935012,6.791362,13.057,13.048,81.4358]
[1672776937237,6.791362,13.057,13.048,23.8958]
[1672776938701,64.291362,13.057,13.048,23.8958]
[1672776938913,6.791362,13.057,13.048,23.8958]
[1672776944812,6.791362,13.057,13.048,34.97717784]
[1672776946178,6.791362,13.057,13.048,23.8958]
[1672776947734,6.791362,13.057,13.049,57.53]
[1672776948165,6.791362,13.057,13.05,11.08137784]
[1672776948365,6.791362,13.057,13.051,57.52]
[1672776948796,6.791362,13.057,13.052,11.08137784]
[1672776949011,6.791362,13.057,13.049,57.53]
[1672776949943,6.791362,13.057,13.049,68.61137784]
[1672776950169,6.791362,13.057,13.049,57.53]
[1672776950367,6.791362,13.057,13.048,23.8958]
[1672776954048,6.791362,13.057,13.048,34.97717784]
[1672776954258,6.791362,13.057,13.049,57.53]
[1672776957097,6.791362,13.057,13.048,23.8958]
[1672776957613,6.791362,13.057,13.049,57.53]
[1672776957828,6.791362,13.057,13.048,81.4358]
[1672776961307,6.791362,13.057,13.048,92.51717784]
[1672776961832,6.791362,13.057,13.05,6.67]
[1672776962037,6.791362,13.057,13.051,57.52]
[1672776962255,6.791362,13.057,13.052,30.0]
[1672776962448,6.791362,13.057,13.053,57.51]
[1672776962659,6.791362,13.057,13.055,30.0]
[1672776962874,6.791362,13.057,13.056,77.5]
[1672776963325,6.791362,13.057,13.056,88.58137784]
[1672776964038,6.791362,13.057,13.056,31.08137784]
[1672776964870,6.791362,13.057,13.056,20.0]
[1672776965078,6.791362,13.057,13.055,20.0]
[1672776965299,6.791362,13.057,13.056,57.5]
[1672776965518,6.791362,13.057,13.056,20.0]
[1672776966040,6.791362,13.057,13.051,24.4009]
[1672776966885,6.791362,13.057,13.048,57.54]
[1672776969080,6.791362,13.057,13.04,6.65]
[1672776969081,20.0,13.056,13.044,57.55]
[1672776969292,57.5,13.055,13.041,57.57]
[1672776969509,104.5233,13.055,13.038,57.58]
[1672776969710,47.0233,13.054,13.038,104.8132]
[1672776969913,57.51,13.053,13.038,104.8132]
[1672776970124,30.0,13.052,13.038,104.8132]
[1672776970340,57.52,13.051,13.038,104.8132]
[1672776970751,57.52,13.052,13.038,104.8132]
[1672776970985,57.52,13.052,13.038,115.89457784]
[1672776971405,57.52,13.052,13.038,104.8132]
[1672776971821,6.78311955,13.055,13.04,33.37]
[1672776972035,6.76662708,13.051,13.041,77.57]
[1672776972224,6.76662708,13.051,13.042,30.0]
[1672776972433,6.76662708,13.051,13.043,77.56]
[1672776972645,6.76662708,13.051,13.044,30.0]
[1672776972856,46.8233,13.06,13.046,30.0]
[1672776973061,46.8233,13.06,13.047,77.54]
[1672776973917,46.8233,13.06,13.047,132.68297174]
[1672776974339,46.8233,13.06,13.047,189.03737635]
[1672776974664,46.8233,13.06,13.047,247.05957511]
[1672776975090,46.8233,13.06,13.048,30.0]
[1672776975395,46.8233,13.06,13.049,57.53]
[1672776975597,46.8233,13.06,13.05,36.67]
[1672776975929,6.791362,13.057,13.051,57.52]
[1672776976120,6.791362,13.057,13.051,102.79302677]
[1672776976338,6.791362,13.057,13.052,45.27302677]
[1672776976857,6.791362,13.057,13.052,100.41599851]
[1672776977273,6.791362,13.057,13.053,45.27302677]
[1672776977691,6.791362,13.057,13.053,100.41599851]
[1672776977901,6.791362,13.057,13.054,58.02219876]
[1672776978110,6.791362,13.057,13.054,103.29522553]
[1672776978338,6.791362,13.057,13.051,57.52]
[1672776978966,6.791362,13.057,13.051,115.54219876]
[1672776979694,6.791362,13.057,13.051,57.52]
[1672776980120,6.791362,13.057,13.048,115.56219876]
[1672776980432,6.791362,13.057,13.051,58.02219876]
[1672776980852,6.791362,13.057,13.048,57.54]
[1672776981694,6.791362,13.057,13.05,6.65]
[1672776981904,6.791362,13.057,13.051,57.52]
[1672776982216,6.791362,13.057,13.051,97.98614677]
[1672776982868,6.791362,13.057,13.049,57.53]
[1672776983056,6.791362,13.057,13.048,57.54]
[1672776987383,6.791362,13.057,13.047,77.54]
[1672776988334,6.791362,13.057,13.047,57.54]
[1672776988546,6.791362,13.057,13.044,57.55]
[1672776988547,77.5,13.056,13.044,57.55]
[1672776988866,83.72623501,13.056,13.04,168.9724]
[1672776989063,46.6192,13.055,13.04,168.9724]
[1672776989471,46.6192,13.055,13.041,30.0]
[1672776989701,46.6192,13.055,13.043,30.0]
[1672776989902,46.6192,13.055,13.044,57.55]
[1672776991597,46.6192,13.055,13.041,30.0]
[1672776991598,46.6192,13.055,13.042,57.56]
[1672776991808,6.21799131,13.054,13.042,57.56]
[1672776992863,6.21799131,13.054,13.041,57.57]
[1672776993047,54.15549131,13.054,13.041,57.57]
[1672776993260,54.15549131,13.054,13.041,68.65137784]
[1672776994430,54.15549131,13.054,13.042,30.0]
[1672776994630,54.15549131,13.054,13.043,57.56]
[1672776995051,54.15549131,13.054,13.042,57.56]
[1672776995807,54.15549131,13.054,13.04,147.5197]
[1672776995808,54.15549131,13.054,13.041,57.57]
[1672776997685,57.51,13.053,13.04,191.8197]
[1672776997883,80.119,13.053,13.04,134.2497]
[1672776998319,22.609,13.053,13.04,134.2497]
[1672776998730,57.52,13.052,13.04,134.2497]
[1672776998929,6.20974507,13.052,13.041,57.57]
[1672776999879,6.20974507,13.052,13.042,30.0]
[1672777000095,6.20974507,13.052,13.043,77.56]
[1672777000413,6.20974507,13.052,13.043,88.64137784]
[1672777000627,6.20974507,13.052,13.044,41.08137784]
[1672777000880,6.20974507,13.052,13.046,30.0]
[1672777001077,6.20974507,13.052,13.047,77.54]
[1672777002117,22.5338,13.057,13.047,77.54]
[1672777002328,141.1167736,13.058,13.05,13.26]
[1672777002539,26.1932736,13.058,13.05,13.26]
[1672777002976,6.22623501,13.056,13.05,13.26]
[1672777004018,26.1932736,13.058,13.05,13.26]
[1672777005076,6.23035592,13.057,13.05,13.26]
[1672777005274,6.23035592,13.057,13.048,82.279]
[1672777006233,6.23035592,13.057,13.048,24.739]
[1672777009700,6.23035592,13.057,13.049,57.53]
[1672777011166,6.23035592,13.057,13.049,68.61137784]
[1672777012134,6.23035592,13.057,13.05,13.26]
[1672777012318,6.23035592,13.057,13.051,57.52]
[1672777013914,6.23035592,13.057,13.05,139.8935766]
[1672777014216,6.23035592,13.057,13.051,58.02219876]
[1672777014434,6.23035592,13.057,13.05,57.53]
[1672777014619,6.23035592,13.057,13.049,48.32576307]
[1672777014620,6.23035592,13.057,13.049,105.85576307]
[1672777015250,6.23035592,13.057,13.05,13.36]
[1672777015778,6.23035592,13.057,13.048,24.739]
[1672777016211,6.23035592,13.057,13.048,82.279]
[1672777016935,6.23035592,13.057,13.048,24.739]
[1672777017799,6.23035592,13.057,13.048,82.279]
[1672777025994,6.23035592,13.057,13.048,24.739]
[1672777026840,6.23035592,13.057,13.048,82.279]
[1672777027045,6.23035592,13.057,13.048,24.739]
[1672777027679,6.23035592,13.057,13.049,57.53]
[1672777031568,6.23035592,13.057,13.05,30.0]
[1672777031763,6.23035592,13.057,13.051,57.52]
[1672777031978,6.23035592,13.057,13.052,30.0]
[1672777032606,6.23035592,13.057,13.051,104.09892461]
[1672777034392,6.23035592,13.057,13.051,57.52]
[1672777034601,6.23035592,13.057,13.05,57.53]
[1672777035026,6.23035592,13.057,13.051,58.02219876]
[1672777035249,6.23035592,13.057,13.05,319.84409483]
[1672777038075,6.23035592,13.057,13.05,412.8716416]
[1672777038413,6.23035592,13.057,13.052,30.0]
[1672777038805,6.23035592,13.057,13.053,319.84409483]
[1672777044394,6.23035592,13.057,13.048,24.739]
[1672777045220,6.23035592,13.057,13.048,82.279]
[1672777045657,6.23035592,13.057,13.048,24.739]
[1672777047362,6.23035592,13.057,13.048,82.279]
[1672777057248,6.23035592,13.057,13.049,30.0]
[1672777057456,6.23035592,13.057,13.05,57.53]
[1672777058724,6.23035592,13.057,13.049,57.53]
[1672777067873,6.23035592,13.057,13.05,30.0]
[1672777068076,6.23035592,13.057,13.051,57.52]
[1672777070592,6.23035592,13.057,13.05,57.53]
[1672777072925,6.23035592,13.057,13.049,35.49754677]
[1672777073117,6.23035592,13.057,13.05,41.92802974]
[1672777073447,6.23035592,13.057,13.048,24.739]
[1672777075971,6.23035592,13.057,13.048,82.279]
[1672777076161,6.23035592,13.057,13.048,24.739]
[1672777079445,6.23035592,13.057,13.048,82.279]
[1672777082299,6.23035592,13.057,13.049,11.08137784]
[1672777082482,6.23035592,13.057,13.05,57.53]
[1672777082907,6.23035592,13.057,13.05,93.02754677]
[1672777083418,6.23035592,13.057,13.05,57.53]
[1672777083629,6.23035592,13.057,13.049,57.53]
[1672777084057,6.23035592,13.057,13.049,93.02754677]
[1672777085628,6.23035592,13.057,13.049,104.10892461]
[1672777085939,6.23035592,13.057,13.049,93.02754677]
[1672777089009,20.0,13.056,13.045,11.08137784]
[1672777089413,20.0,13.056,13.041,23.2582]
[1672777089626,23.4179,13.055,13.042,68.64137784]
[1672777089844,29.56386824,13.055,13.043,30.0]
[1672777090053,6.14596824,13.055,13.044,57.55]
[1672777090264,6.14596824,13.055,13.045,30.0]
[1672777090477,6.14596824,13.055,13.046,57.54]
[1672777090687,6.14596824,13.055,13.047,20.0]
[1672777091852,6.14596824,13.055,13.045,57.55]
[1672777092178,30.0,13.054,13.044,23.3453]
[1672777092592,57.51,13.053,13.044,23.3453]
[1672777093013,111.0732,13.054,13.044,23.3453]
[1672777093738,6.13772327,13.053,13.044,23.3453]
[1672777093949,57.52,13.052,13.044,23.3453]
[1672777094276,6.68,13.05,13.044,23.3453]
[1672777095097,30.0,13.051,13.044,23.3453]
[1672777095312,57.53,13.05,13.044,23.3453]
[1672777095523,87.52,13.051,13.044,23.3453]
[1672777096596,57.52,13.051,13.044,23.3453]
[1672777096996,87.52,13.052,13.044,23.3453]
[1672777097540,57.52,13.052,13.044,23.3453]
[1672777097944,36.12947577,13.051,13.044,23.3453]
[1672777099325,6.12947577,13.051,13.044,23.3453]
[1672777099638,64.18,13.05,13.044,23.27855116]
[1672777099830,50.0,13.049,13.023,30.0]
[1672777100041,50.0,13.049,13.031,110.2348]
[1672777100042,30.0,13.047,13.031,110.2348]
[1672777100251,77.54,13.046,13.032,57.61]
[1672777100477,77.54,13.046,13.031,110.2348]
[1672777100988,23.6192,13.045,13.032,57.61]
[1672777101200,57.55,13.044,13.032,57.61]
[1672777101742,23.6192,13.044,13.032,57.61]
[1672777101933,29.71978961,13.044,13.032,57.61]
[1672777102787,59.71978961,13.044,13.032,57.61]
[1672777104249,30.0,13.042,13.031,110.2348]
[1672777104469,80.103,13.043,13.031,110.2348]
[1672777105926,36.09233073,13.042,13.031,110.2348]
[1672777106780,57.57,13.041,13.031,134.6347]
[1672777107090,30.0,13.04,13.031,134.6347]
[1672777108996,36.7,13.04,13.031,134.6347]
[1672777109728,6.07993765,13.039,13.031,134.6347]
[1672777110261,77.58,13.038,13.026,57.63]
[1672777110451,77.58,13.038,13.022,24.4583]
[1672777110666,53.8564,13.037,13.023,57.65]
[1672777110867,30.0,13.035,13.023,57.65]
[1672777111515,81.4464,13.036,13.023,57.65]
[1672777111826,43.8564,13.035,13.023,57.65]
[1672777112886,43.8564,13.035,13.022,24.4583]
[1672777113194,57.6,13.034,13.023,57.65]
[1672777113426,43.8564,13.035,13.022,82.1083]
[1672777113599,57.6,13.034,13.022,82.1083]
[1672777113810,63.65926985,13.034,13.022,82.1083]
[1672777114145,63.65926985,13.034,13.023,23.2658]